bitfinex-derivatives/quotes_SOLF0:USTF0_20250114
["timestamp","ask_amount","ask_price","bid_price","bid_amount"]
[1736838463983,10.67923523,186.11,186.08,2.6882]
[1736838473178,2.6878,186.11,186.08,2.6882]
[1736838473383,10.67923523,186.11,186.08,2.6882]
[1736838481096,2.6887,186.05,186.02,29.50490612]
[1736838481293,10.68013523,186.05,186.02,29.50490612]
[1736838482196,2.6888,186.04,186.02,29.50490612]
[1736838482399,2.6888,186.04,186.01,2.6891]
[1736838487202,10.68043523,186.03,185.99,2.6894]
[1736838487400,10.68043523,186.03,185.97,7.99143523]
[1736838487603,10.68043523,186.03,185.98,2.6895]
[1736838487793,10.68043523,186.03,185.97,7.99143523]
[1736838488098,7.99143523,186.03,185.94,31.04120612]
[1736838488403,2.6892,186.01,185.98,2.6896]
[1736838489303,10.68063523,186.01,185.98,2.6896]
[1736838490304,10.68063523,186.01,185.95,7.99143523]
[1736838490305,7.99143523,186.01,185.99,2.6894]
[1736838492507,7.99143523,186.01,185.93,7.37622653]
[1736838492707,7.99143523,185.99,185.93,15.36766176]
[1736838493608,10.68093523,185.99,185.93,15.36766176]
[1736838493914,10.68093523,185.99,185.92,53.22810036]
[1736838494210,10.68093523,185.99,185.96,2.6898]
[1736838495107,10.68123523,185.97,185.94,2.6901]
[1736838495402,10.68123523,185.97,185.92,53.22810036]
[1736838495403,7.99143523,185.97,185.92,53.22810036]
[1736838495609,3.2371,186.02,185.94,2.6902]
[1736838495803,7.99143523,185.98,185.94,2.6902]
[1736838496209,10.68113523,185.98,185.94,2.6902]
[1736838496609,7.99143523,185.98,185.94,2.6902]
[1736838497109,7.99143523,185.98,185.92,53.22810036]
[1736838497309,7.99143523,185.96,185.87,29.50490612]
[1736838497514,7.99143523,185.96,185.89,7.99143523]
[1736838498009,2.6902,185.95,185.91,2.6906]
[1736838498411,2.6902,185.95,185.92,2.6905]
[1736838500008,7.99143523,185.94,185.92,2.6905]
[1736838505317,1.5704,186.0,185.91,7.99143523]
[1736838505618,7.99143523,185.99,185.93,7.99143523]
[1736838507021,7.99143523,185.99,185.96,2.6898]
[1736838507617,7.99143523,185.99,185.97,2.6898]
[1736838507815,7.99143523,185.99,185.95,7.99143523]
[1736838508522,7.99143523,185.99,185.97,2.6896]
[1736838509916,7.99143523,185.99,185.98,2.6896]
[1736838510422,7.99143523,186.03,186.0,2.6892]
[1736838510610,1.6701,186.07,185.9,5.42]
[1736838510611,7.0901,186.07,185.99,7.99143523]
[1736838510816,10.68013523,186.05,185.99,7.99143523]
[1736838511913,10.68013523,186.05,186.0,2.6892]
[1736838512220,7.99143523,186.03,185.99,7.99143523]
[1736838512615,7.99143523,186.03,186.01,2.6891]
[1736838512816,7.99143523,186.03,185.92,53.23021274]
[1736838513012,2.689,186.03,185.98,2.6896]
[1736838513323,7.99143523,186.02,185.96,7.99143523]
[1736838513825,2.689,186.03,185.96,7.99143523]
[1736838514119,7.99143523,186.02,185.96,7.99143523]
[1736838515025,7.99143523,186.02,185.99,2.6894]
[1736838516027,10.68053523,186.02,185.99,2.6894]
[1736838521532,7.99143523,186.0,185.91,17.63002653]
[1736838521726,10.68073523,186.0,185.94,7.99143523]
[1736838522231,10.68073523,186.0,185.96,2.6898]
[1736838522634,7.99143523,186.0,185.96,2.6898]
[1736838522835,7.99143523,185.98,185.95,2.6901]
[1736838525635,7.99143523,185.96,185.94,2.6901]
[1736838525842,7.99143523,185.96,185.9,53.23582155]
[1736838526141,7.99143523,185.94,185.9,53.23582155]
[1736838526326,7.99143523,185.94,185.92,2.6904]
[1736838527836,7.99143523,185.94,185.9,53.23582155]
[1736838528038,7.99143523,185.94,185.87,37.49634135]
[1736838528237,10.68173523,185.94,185.87,37.49634135]
[1736838528437,7.99143523,185.94,185.89,2.6909]
[1736838528733,7.99143523,185.92,185.89,2.6909]
[1736838529938,2.6906,185.91,185.87,2.6912]
[1736838530136,2.6906,185.91,185.85,108.59143523]
[1736838530328,7.99143523,185.9,185.85,108.59143523]
[1736838530834,7.99143523,185.9,185.88,2.6911]
[1736838532341,7.99143523,185.9,185.86,2.6913]
[1736838532638,7.99143523,185.9,185.85,7.99143523]
[1736838534144,7.99143523,185.9,185.87,2.6912]
[1736838534545,7.99143523,185.9,185.84,7.08530252]
[1736838534745,7.99143523,185.9,185.86,2.6913]
[1736838534940,7.99143523,185.9,185.84,15.07673775]
[1736838536742,7.99143523,185.9,185.87,2.6912]
[1736838537546,7.99143523,185.9,185.84,15.07673775]
[1736838537746,10.68233523,185.9,185.86,2.6913]
[1736838537946,7.99143523,185.88,185.86,2.6913]
[1736838538150,7.99143523,185.88,185.85,2.6915]
[1736838542546,7.99143523,185.88,185.86,2.6913]
[1736838542746,3.2407,185.93,185.84,7.08530252]
[1736838542944,7.99143523,185.9,185.84,7.08530252]
[1736838543539,7.99143523,185.9,185.87,2.6911]
[1736838545049,7.99143523,185.9,185.84,7.08530252]
[1736838545248,10.68233523,185.9,185.86,2.6913]
[1736838545449,7.99143523,185.88,185.84,7.08530252]
[1736838546447,7.99143523,185.86,185.78,7.37622653]
[1736838546759,7.99143523,185.84,185.78,7.37622653]
[1736838546949,7.99143523,185.84,185.78,15.36766176]
[1736838547258,5.44,185.88,185.78,15.36766176]
[1736838547259,1.6699,185.87,185.78,7.37622653]
[1736838547454,1.6699,185.87,185.78,15.36766176]
[1736838547657,13.43143523,185.88,185.82,7.99143523]
[1736838548351,13.43143523,185.88,185.83,2.6917]
[1736838548654,13.43143523,185.88,185.82,7.99143523]
[1736838548949,13.43143523,185.88,185.86,2.6913]
[1736838549352,5.44,185.88,185.84,7.99143523]
[1736838549662,7.99143523,185.9,185.88,2.691]
[1736838549955,7.99143523,185.9,185.84,7.99143523]
[1736838551256,7.99143523,185.9,185.88,2.691]
[1736838551554,7.99143523,185.9,185.84,7.99143523]
[1736838552753,7.99143523,185.88,185.84,7.99143523]
[1736838553056,7.99143523,185.88,185.82,7.99143523]
[1736838553552,10.68263523,185.88,185.85,2.6915]
[1736838553756,2.6912,185.88,185.82,7.99143523]
[1736838553958,7.99143523,185.89,185.82,7.99143523]
[1736838554352,190.86443523,185.91,185.84,7.99143523]
[1736838554563,182.873,185.91,185.86,7.99143523]
[1736838555356,182.873,185.91,185.89,2.6908]
[1736838556257,190.86443523,185.91,185.89,2.6908]
[1736838558462,190.86443523,185.91,185.84,7.99143523]
[1736838558658,7.99143523,185.89,185.87,2.6911]
[1736838559662,2.6907,185.91,185.8,1.6168]
[1736838559663,7.99143523,185.91,185.88,2.6911]
[1736838559858,7.99143523,185.91,185.86,7.99143523]
[1736838560056,7.99143523,185.93,185.86,7.99143523]
[1736838560558,7.99143523,185.93,185.9,2.6907]
[1736838561962,10.68173523,185.93,185.9,2.6907]
[1736838563963,10.68173523,185.93,185.91,2.6906]
[1736838565967,10.68173523,185.93,185.9,2.6907]
[1736838567068,2.6903,185.93,185.9,2.6907]
[1736838567367,7.99143523,185.93,185.91,2.6906]
[1736838567760,10.68183523,185.93,185.9,2.6907]
[1736838571861,2.6905,185.92,185.9,2.6907]
[1736838573558,2.6901,185.95,185.92,2.6904]
[1736838573761,2.6901,185.95,185.86,7.99143523]
[1736838573762,7.99143523,185.94,185.88,7.99143523]
[1736838574967,10.68173523,185.94,185.91,2.6905]
[1736838575266,7.99143523,185.94,185.91,2.6905]
[1736838575869,2.6904,185.93,185.91,2.6905]
[1736838576063,7.99143523,185.94,185.91,2.6905]
[1736838576268,7.99143523,185.95,185.92,2.6904]
[1736838576464,7.99143523,185.95,185.9,7.99143523]
[1736838578069,10.68153523,185.95,185.92,2.6904]
[1736838581273,2.6898,185.97,185.92,7.99143523]
[1736838581471,7.99143523,185.98,185.92,7.99143523]
[1736838583174,10.68103523,185.98,185.92,7.99143523]
[1736838583571,10.68103523,185.98,185.94,2.6901]
[1736838584880,10.68103523,185.98,185.95,2.69]
[1736838588084,7.99143523,186.0,185.97,2.6896]
[1736838588386,2.6892,186.01,185.94,7.99143523]
[1736838588585,10.68063523,186.01,185.97,2.6896]
[1736838589180,2.6893,186.0,185.94,7.99143523]
[1736838589379,2.6893,186.0,185.96,2.6899]
[1736838590779,2.6893,186.0,185.97,2.6898]
[1736838592782,7.99143523,185.99,185.97,2.6898]
[1736838592988,10.68103523,185.99,185.95,2.69]
[1736838593284,7.99143523,185.97,185.95,2.69]
[1736838593883,7.99143523,185.97,185.94,2.6902]
[1736838595889,7.99143523,185.97,185.95,2.69]
[1736838604188,2.6897,185.98,185.95,2.69]
[1736838604385,182.873,186.03,185.95,7.99143523]
[1736838604583,7.99143523,186.01,185.95,7.99143523]
[1736838604886,2.6892,186.01,185.97,2.6896]
[1736838606491,2.6892,186.01,185.98,2.6896]
[1736838606695,7.99143523,186.02,185.98,2.6896]
[1736838606894,10.68063523,186.02,185.98,2.6896]
[1736838607594,3.3689,186.05,185.97,7.99143523]
[1736838608095,10.68033523,186.04,186.01,2.6891]
[1736838608288,2.6889,186.04,186.01,2.6891]
[1736838610097,2.6888,186.04,186.01,2.6891]
[1736838610691,7.99143523,186.03,186.01,2.6891]
[1736838612494,44.71805739,186.07,186.0,7.99143523]
[1736838612693,2.6881,186.09,186.06,2.6885]
[1736838613392,10.67953523,186.09,186.06,2.6885]
[1736838613590,7.99143523,186.09,186.05,2.6886]
[1736838613796,2.6882,186.08,186.05,2.6886]
[1736838615196,7.99143523,186.07,186.05,2.6886]
[1736838615597,2.6881,186.09,186.06,2.6885]
[1736838615796,10.67953523,186.09,186.06,2.6885]
[1736838616696,7.99143523,186.09,186.06,2.6885]
[1736838616896,2.6882,186.08,186.05,2.6885]
[1736838617295,2.6882,186.08,186.02,7.99143523]
[1736838617903,10.67953523,186.09,186.02,7.99143523]
[1736838618397,10.67953523,186.09,186.05,2.6885]
[1736838622105,7.99143523,186.07,186.05,2.6885]
[1736838623703,10.67973523,186.07,186.04,2.6886]
[1736838627606,2.6883,186.07,186.04,2.6886]
[1736838633412,1.5553,186.11,186.02,7.99143523]
[1736838633613,2.6881,186.09,186.06,2.6885]
[1736838634016,7.99143523,186.1,186.02,7.99143523]
[1736838634216,10.67933523,186.1,186.07,2.6883]
[1736838634813,10.67933523,186.1,186.04,7.99143523]
[1736838635013,10.67933523,186.1,186.08,2.6881]
[1736838635613,2.6881,186.09,186.06,2.6884]
[1736838635815,7.99143523,186.08,186.02,7.99143523]
[1736838636911,7.99143523,186.08,186.07,2.6883]
[1736838639222,7.99143523,186.1,186.07,2.6883]
[1736838639417,2.6879,186.1,186.07,2.6883]
[1736838639614,10.67933523,186.1,186.07,2.6883]
[1736838640413,2.6878,186.11,186.08,2.6881]
[1736838644715,2.6879,186.1,186.08,2.6881]
[1736838649223,2.6881,186.09,186.06,2.6884]
[1736838649931,7.99143523,186.1,186.0,29.50490612]
[1736838650118,2.6883,186.08,186.05,2.6885]
[1736838652027,10.67973523,186.08,186.05,2.6885]
[1736838652217,182.873,186.13,185.99,60.58802217]
[1736838652218,7.99143523,186.06,185.99,60.58802217]
[1736838652421,7.99143523,186.06,185.99,68.5794574]
[1736838652822,2.6888,186.04,186.0,2.6892]
[1736838653123,2.6888,186.04,185.99,61.20323087]
[1736838653328,2.6888,186.04,186.0,2.6893]
[1736838653627,7.99143523,186.04,185.99,61.20323087]
[1736838653828,2.6889,186.03,185.99,61.20323087]
[1736838654721,2.6889,186.03,186.0,2.6893]
[1736838655724,2.6891,186.02,185.99,2.6894]
[1736838655930,10.68053523,186.02,185.98,5.41256148]
[1736838656830,10.68053523,186.02,185.98,8.10216148]
[1736838658930,2.6897,185.98,185.95,2.69]
[1736838661331,7.99143523,186.01,185.96,7.99143523]
[1736838661532,2.6894,186.0,185.96,10.68123523]
[1736838663136,7.99143523,186.01,185.96,2.6898]
[1736838663332,7.99143523,185.99,185.94,7.99143523]
[1736838663532,7.99143523,185.97,185.92,7.99143523]
[1736838664537,10.68133523,185.97,185.93,2.6903]
[1736838665140,10.68133523,185.97,185.94,2.6902]
[1736838665338,10.68133523,185.97,185.92,7.99143523]
[1736838665538,2.69,185.96,185.92,7.99143523]
[1736838665943,7.99143523,185.97,185.92,10.68183523]
[1736838667146,2.6901,185.95,185.92,2.6904]
[1736838669641,2.6903,185.94,185.91,2.6906]
[1736838670344,2.6903,185.94,185.9,2.6907]
[1736838675554,2.6903,185.94,185.91,2.6906]
[1736838677648,7.99143523,185.93,185.89,2.6908]
[1736838678043,2.6905,185.92,185.89,2.6908]
[1736838679251,10.68183523,185.93,185.89,2.6908]
[1736838680452,10.68183523,185.93,185.9,2.6908]
[1736838682152,2.6904,185.93,185.9,2.6908]
[1736838682354,2.6902,185.94,185.91,2.6906]
[1736838683253,2.6902,185.94,185.89,7.99143523]
[1736838683558,2.6902,185.94,185.9,2.6907]
[1736838685756,2.6904,185.93,185.9,2.6907]
[1736838687751,10.68183523,185.93,185.9,2.6907]
[1736838695963,7.99143523,185.93,185.92,2.6905]
[1736838696165,10.68153523,185.95,185.92,2.6905]
[1736838700363,2.6902,185.94,185.92,2.6905]
[1736838704656,182.873,186.0,185.93,2.6902]
[1736838704862,7.99143523,186.0,185.93,7.99143523]
[1736838705364,7.99143523,186.0,185.95,7.99143523]
[1736838705669,182.873,186.04,185.97,7.99143523]
[1736838705969,7.99143523,186.03,185.97,7.99143523]
[1736838706969,2.6892,186.02,185.99,2.6895]
[1736838707768,2.6892,186.01,185.99,2.6895]
[1736838708769,2.6892,186.01,185.97,7.99143523]
[1736838708969,2.6892,186.01,185.98,2.6896]
[1736838710767,2.6893,186.0,185.98,2.6896]
[1736838715473,2.6893,186.0,185.95,7.99143523]
[1736838715673,2.6893,186.0,185.97,2.6897]
[1736838719776,2.6891,186.02,185.99,2.6894]
[1736838719980,7.99143523,186.03,185.97,7.99143523]
[1736838721082,2.6891,186.02,185.99,2.6894]
[1736838721383,2.6891,186.02,185.97,7.99143523]
[1736838721882,2.6891,186.02,185.98,2.6895]
[1736838722080,2.6895,185.99,185.91,1.6153]
[1736838722283,2.6895,185.99,185.95,7.99143523]
[1736838723086,2.6895,185.99,185.96,2.6899]
[1736838725484,2.6894,186.0,185.97,2.6897]
[1736838731492,2.6896,185.98,185.96,2.6899]
[1736838731789,2.6896,185.98,185.9,12.79622653]
[1736838731790,2.6896,185.98,185.93,7.99143523]
[1736838732184,2.6896,185.98,185.95,2.69]
[1736838734694,2.6898,185.97,185.94,2.6902]
[1736838735493,10.68123523,185.97,185.94,2.6902]
[1736838737189,7.99143523,185.95,185.9,7.99143523]
[1736838737787,10.68153523,185.95,185.92,2.6905]
[1736838738190,10.68153523,185.95,185.88,15.36766176]
[1736838738596,2.6902,185.94,185.91,2.6906]
[1736838738792,7.99143523,185.93,185.88,7.99143523]
[1736838739691,7.99143523,185.93,185.89,2.6909]
[1736838740394,10.68213523,185.91,185.87,2.6912]
[1736838741100,7.99143523,185.93,185.88,7.99143523]
[1736838741699,10.68183523,185.93,185.89,2.6909]
[1736838746001,10.68183523,185.93,185.89,10.68233523]
[1736838747502,10.68183523,185.93,185.89,2.6909]
[1736838749804,7.99143523,185.93,185.87,7.99143523]
[1736838750004,10.68213523,185.91,185.87,10.68253523]
[1736838751900,10.68213523,185.91,185.88,2.6911]
[1736838753505,182.873,185.98,185.89,7.99143523]
[1736838753707,7.99143523,185.96,185.89,7.99143523]
[1736838754007,2.6902,185.95,185.91,2.6906]
[1736838755108,7.99143523,185.94,185.91,2.6906]
[1736838755595,10.68173523,185.94,185.91,2.6906]
[1736838756310,2.6905,185.93,185.89,2.6909]
[1736838758610,7.99143523,185.92,185.89,2.6909]
[1736838760112,10.68193523,185.92,185.89,2.6909]
[1736838761109,10.68193523,185.92,185.88,2.6911]
[1736838767023,2.6907,185.91,185.88,2.6911]
[1736838772526,7.99143523,185.94,185.9,2.6907]
[1736838773025,10.68203523,185.92,185.89,2.6909]
[1736838773324,7.99143523,185.92,185.86,7.99143523]
[1736838773514,7.99143523,185.92,185.85,29.50490612]
[1736838773719,2.6908,185.9,185.87,2.6912]
[1736838778626,2.6907,185.91,185.87,2.6912]
[1736838779832,2.6907,185.91,185.85,7.99143523]
[1736838780127,2.6907,185.91,185.88,2.691]
[1736838804245,10.68213523,185.91,185.88,2.691]
[1736838804647,2.6909,185.89,185.86,2.6913]
[1736838806547,7.99143523,185.91,185.85,7.99143523]
[1736838806548,2.6909,185.9,185.87,2.6912]
[1736838806848,7.99143523,185.91,185.85,7.99143523]
[1736838807144,7.99143523,185.91,185.88,2.6909]
[1736838809751,7.99143523,185.91,185.89,2.6909]
[1736838812747,44.74024489,185.97,185.89,7.99143523]
[1736838812947,52.73168012,185.97,185.89,7.99143523]
[1736838813147,52.73168012,185.97,185.91,7.99143523]
[1736838813950,2.69,185.96,185.93,2.6903]
[1736838817956,44.74024489,185.97,185.93,7.99143523]
[1736838818150,4.9428,186.0,185.86,5.42]
[1736838818151,12.93423523,186.0,185.95,7.99143523]
[1736838819050,2.6895,185.99,185.97,2.6898]
[1736838819251,2.6895,185.99,185.95,7.99143523]
[1736838820150,2.6895,185.99,185.96,2.6898]
[1736838821157,2.6899,185.96,185.88,29.50490612]
[1736838821359,7.99143523,185.96,185.9,7.99143523]
[1736838821559,7.99143523,185.94,185.88,37.49634135]
[1736838822359,10.68163523,185.94,185.91,2.6905]
[1736838823559,2.6902,185.94,185.91,2.6905]
[1736838824455,7.99143523,185.95,185.85,5.42]
[1736838824762,10.68173523,185.93,185.9,2.6908]
[1736838825956,7.99143523,185.93,185.9,2.6908]
[1736838833162,10.68183523,185.93,185.9,2.6908]
[1736838836366,2.6899,185.96,185.92,2.6904]
[1736838836662,1.5463,185.99,185.91,7.99143523]
[1736838837068,10.68133523,185.97,185.91,7.99143523]
[1736838837566,10.68133523,185.97,185.93,2.6902]
[1736838841269,2.6899,185.97,185.93,2.6902]
[1736838841569,10.68133523,185.97,185.93,2.6902]
[1736838841770,10.68133523,185.97,185.94,2.6902]
[1736838842364,1.5463,185.99,185.86,29.50490612]
[1736838842365,2.6897,185.98,185.95,2.69]
[1736838842566,182.873,186.02,185.86,34.88760612]
[1736838842567,7.99143523,186.03,185.97,7.99143523]
[1736838842974,5.42,186.08,185.97,7.99143523]
[1736838842975,10.68023523,186.04,186.0,2.6893]
[1736838844173,5.42,186.09,185.99,7.99143523]
[1736838844473,10.68003523,186.05,185.99,7.99143523]
[1736838845073,2.6886,186.05,185.99,7.99143523]
[1736838845271,10.68003523,186.05,185.99,7.99143523]
[1736838845571,10.68003523,186.05,186.02,2.689]
[1736838845967,2.6886,186.05,186.02,2.689]
[1736838846174,10.68003523,186.05,186.02,2.689]
[1736838848475,7.99143523,186.03,186.02,2.689]
[1736838849678,7.99143523,186.03,185.91,12.19552653]
[1736838849974,10.68033523,186.03,186.0,2.6892]
[1736838851275,7.99143523,186.01,185.98,2.6895]
[1736838851772,7.99143523,186.01,185.96,7.99143523]
[1736838851974,7.99143523,186.01,185.99,2.6895]
[1736838855781,7.99143523,186.01,185.98,2.6896]
[1736838861097,7.99143523,186.01,185.99,2.6894]
[1736838864400,182.873,186.09,185.95,7.99143523]
[1736838864695,7.99143523,186.02,186.0,2.6893]
[1736838872608,10.68053523,186.02,185.96,7.99143523]
[1736838872911,10.68053523,186.02,185.93,5.33384267]
[1736838873101,7.99143523,186.0,185.98,2.6895]
[1736838873707,7.99143523,186.0,185.94,7.99143523]
[1736838874008,7.99143523,186.0,185.99,2.6895]
[1736838874904,7.99143523,186.0,185.98,2.6896]
[1736838876911,10.68083523,186.0,185.96,2.6898]
[1736838877109,7.99143523,185.98,185.96,2.6898]
[1736838878314,7.99143523,185.98,185.97,2.6898]
[1736838881809,7.99143523,185.98,185.93,5.33384267]
[1736838882610,10.68113523,185.98,185.94,2.6901]
[1736838883005,10.68113523,185.98,185.93,5.33384267]
[1736838883211,10.68113523,185.98,185.95,2.69]
[1736838886217,7.99143523,185.96,185.94,2.6901]
[1736838887812,7.99143523,185.96,185.9,7.99143523]
[1736838888116,10.68133523,185.96,185.9,7.99143523]
[1736838888409,10.68133523,185.96,185.86,38.20320612]
[1736838888617,7.99143523,185.94,185.92,2.6904]
[1736838889316,7.99143523,185.94,185.93,2.6903]
[1736838890418,7.99143523,185.94,185.91,2.6905]
[1736838891317,7.99143523,185.94,185.89,7.99143523]
[1736838891518,7.99143523,185.94,185.92,2.6904]
[1736838895818,7.99143523,185.94,185.91,2.6906]
[1736838896414,10.68163523,185.94,185.91,2.6906]
[1736838898218,7.99143523,185.94,185.91,2.6906]
[1736838900524,7.99143523,185.94,185.88,7.99143523]
[1736838900724,7.99143523,185.96,185.93,2.6903]
[1736838900924,7.99143523,185.96,185.9,7.99143523]
[1736838901521,7.99143523,185.96,185.94,2.6901]
[1736838901722,4.7906,186.0,185.94,7.99143523]
[1736838901923,9.63423523,186.0,185.94,7.99143523]
[1736838902121,1.6428,186.0,185.94,7.99143523]
[1736838902317,7.99143523,186.01,185.97,2.6896]
[1736838902722,2.6893,186.0,185.97,2.6896]
[1736838903621,7.99143523,185.99,185.97,2.6896]
[1736838905117,10.68073523,186.0,185.97,2.6896]
[1736838906723,7.99143523,185.98,185.97,2.6896]
[1736838909326,10.68103523,185.98,185.95,2.6899]
[1736838909623,10.68103523,185.98,185.92,7.99143523]
[1736838910431,7.99143523,185.96,185.92,7.99143523]
[1736838910729,7.99143523,185.96,185.9,7.99143523]
[1736838911630,7.99143523,185.96,185.94,2.6902]
[1736838911830,10.68133523,185.96,185.9,7.99143523]
[1736838912031,7.99143523,185.94,185.89,2.6908]
[1736838912231,7.99143523,185.94,185.88,7.99143523]
[1736838912632,7.99143523,185.94,185.91,2.6906]
[1736838913033,7.99143523,185.92,185.91,2.6906]
[1736838915132,7.99143523,185.92,185.9,2.6907]
[1736838915338,2.6902,185.94,185.88,7.99143523]
[1736838915527,7.99143523,185.94,185.88,7.99143523]
[1736838915723,7.99143523,185.94,185.91,2.6906]
[1736838918629,7.99143523,185.92,185.87,58.74866197]
[1736838918834,7.99143523,185.92,185.89,2.6909]
[1736838925237,2.6902,185.94,185.9,2.6907]
[1736838925441,1.6095,185.97,185.91,7.99143523]
[1736838925634,1.6095,185.97,185.87,58.74866197]
[1736838925635,7.99143523,185.98,185.93,7.99143523]
[1736838927339,7.99143523,185.98,185.95,2.69]
[1736838932143,10.68103523,185.98,185.95,2.69]
[1736838937852,7.99143523,185.98,185.91,7.99143523]
[1736838938051,7.99143523,185.96,185.94,2.6902]
[1736838938252,7.99143523,185.96,185.91,7.99143523]
[1736838938442,7.99143523,185.94,185.92,2.6904]
[1736838939149,10.68173523,185.94,185.9,2.6907]
[1736838942748,7.99143523,185.94,185.88,7.99143523]
[1736838942950,7.99143523,185.92,185.87,5.50439138]
[1736838943255,7.99143523,185.9,185.87,5.50439138]
[1736838943450,10.68223523,185.9,185.87,8.19559138]
[1736838943656,10.68223523,185.9,185.87,5.50439138]
[1736838945553,7.99143523,185.88,185.87,5.50439138]
[1736838948252,2.6912,185.87,185.84,2.6916]
[1736838950657,10.68253523,185.88,185.84,2.6916]
[1736838953869,10.68253523,185.88,185.85,2.6915]
[1736838954269,7.99143523,185.88,185.85,2.6915]
[1736838954467,7.99143523,185.88,185.82,7.99143523]
[1736838956172,2.691,185.89,185.85,2.6914]
[1736838956359,7.99143523,185.88,185.85,2.6914]
[1736838958073,7.99143523,185.88,185.79,100.68]
[1736838958372,7.99143523,185.86,185.81,7.99143523]
[1736838959169,7.99143523,185.86,185.84,2.6915]
[1736838960268,10.68283523,185.86,185.82,2.6918]
[1736838960571,10.68283523,185.86,185.79,108.67143523]
[1736838961868,10.68283523,185.86,185.82,2.6918]
[1736838962067,10.68283523,185.86,185.79,108.67143523]
[1736838963175,10.68283523,185.86,185.83,2.6918]
[1736838965376,7.99143523,185.84,185.81,2.692]
[1736838966272,7.99143523,185.84,185.79,108.67143523]
[1736838966479,10.68323523,185.84,185.8,2.6922]
[1736838967777,10.68323523,185.84,185.81,2.692]
[1736838968978,7.99143523,185.84,185.77,53.27149256]
[1736838969181,2.6919,185.83,185.77,61.26292779]
[1736838969678,7.99143523,185.82,185.77,61.26292779]
[1736838970079,7.99143523,185.82,185.8,2.6922]
[1736838972679,7.99143523,185.82,185.77,61.26292779]
[1736838972883,7.99143523,185.8,185.78,2.6925]
[1736838977978,7.99143523,185.8,185.77,53.27149256]
[1736838978182,7.99143523,185.8,185.77,55.96409256]
[1736838978589,7.99143523,185.78,185.71,7.92632358]
[1736838978791,7.99143523,185.76,185.73,2.6932]
[1736838980191,4.8588,185.81,185.74,7.99143523]
[1736838980192,7.99143523,185.78,185.74,7.99143523]
[1736838980984,7.99143523,185.78,185.76,2.6927]
[1736838982190,7.99143523,185.78,185.77,2.6927]
[1736838982687,7.99143523,185.78,185.71,7.92632358]
[1736838982992,10.68443523,185.75,185.72,2.6933]
[1736838984491,2.6931,185.74,185.71,7.92632358]
[1736838984688,7.99143523,185.73,185.71,7.92632358]
[1736838986093,7.99143523,185.73,185.71,10.61982358]
[1736838991898,7.99143523,185.75,185.72,2.6934]
[1736838992099,7.99143523,185.75,185.71,7.92632358]
[1736838992400,7.99143523,185.75,185.72,2.6934]
[1736838992603,7.99143523,185.75,185.71,7.92632358]
[1736838993300,7.99143523,185.75,185.73,2.6932]
[1736838994200,2.6928,185.77,185.71,7.92632358]
[1736838994404,7.99143523,185.76,185.74,2.6931]
[1736838997207,7.99143523,185.76,185.73,2.6932]
[1736838997607,7.99143523,185.76,185.71,15.91775881]
[1736838998805,7.99143523,185.76,185.74,2.6931]
[1736839006014,7.99143523,185.76,185.75,2.693]
[1736839015529,2.6923,185.8,185.73,7.99143523]
[1736839015717,7.99143523,185.79,185.73,7.99143523]
[1736839016328,7.99143523,185.79,185.77,2.6926]
[1736839021034,10.68383523,185.79,185.77,2.6926]
[1736839025931,2.6925,185.78,185.71,7.92632358]
[1736839026137,7.99143523,185.75,185.71,7.92632358]
[1736839027137,7.99143523,185.75,185.74,2.6931]
[1736839028740,7.99143523,185.75,185.73,2.6932]
[1736839029942,7.99143523,185.75,185.71,7.92632358]
[1736839030141,7.99143523,185.73,185.71,2.6935]
[1736839032434,7.99143523,185.73,185.66,7.46957673]
[1736839032632,7.99143523,185.71,185.69,2.6937]
[1736839033033,7.99143523,185.71,185.66,7.46957673]
[1736839033236,7.99143523,185.68,185.65,34.34538511]
[1736839033436,7.99143523,185.66,185.65,34.34538511]
[1736839034345,7.99143523,185.66,185.63,2.6947]
[1736839036750,7.99143523,185.66,185.6,7.99143523]
[1736839036951,7.99143523,185.66,185.64,2.6945]
[1736839037447,7.584,185.71,185.66,2.6942]
[1736839037647,7.99143523,185.71,185.66,7.99143523]
[1736839038037,5.42,185.72,185.66,7.99143523]
[1736839038238,13.41143523,185.72,185.66,7.99143523]
[1736839038948,7.99143523,185.7,185.58,29.87830693]
[1736839039151,10.68513523,185.7,185.64,7.99143523]
[1736839039447,10.68513523,185.7,185.63,7.99143523]